[Event "Late-Titled-Tuesday-Blitz-May-07-2024"]
[Site "Chess.com"]
[Date "2024.05.07"]
[Round "6"]
[White "Cuchulin"]
[Black "SergioMoralesG"]
[Result "0-1"]
[WhiteElo "2228"]
[BlackElo "2472"]
[TimeControl "180+1"]
[EndTime "15:03:14 PDT"]
[Termination "SergioMoralesG won by resignation"]

1. d4 {[%clk 0:02:55.6]} 1... d5 {[%clk 0:02:59.8]} 2. Bf4 {[%clk 0:02:55.6]}
2... Nf6 {[%clk 0:02:59.3]} 3. e3 {[%clk 0:02:55.9]} 3... c5 {[%clk 0:02:59.9]}
4. Nc3 {[%clk 0:02:55.1]} 4... a6 {[%clk 0:02:57]} 5. dxc5 {[%clk 0:02:55]} 5...
Qa5 {[%clk 0:02:52.9]} 6. a3 {[%clk 0:02:39.9]} 6... Qxc5 {[%clk 0:02:47.9]} 7.
Nf3 {[%clk 0:02:36]} 7... Nc6 {[%clk 0:02:39.9]} 8. Be2 {[%clk 0:02:35.4]} 8...
e6 {[%clk 0:02:37.2]} 9. h3 {[%clk 0:02:34.7]} 9... Be7 {[%clk 0:02:35.5]} 10.
O-O {[%clk 0:02:34.2]} 10... O-O {[%clk 0:02:35.2]} 11. Ne5 {[%clk 0:02:32.9]}
11... Nxe5 {[%clk 0:02:33.2]} 12. Bxe5 {[%clk 0:02:32.7]} 12... Nd7 {[%clk
0:02:33.4]} 13. Bg3 {[%clk 0:02:31.3]} 13... Bf6 {[%clk 0:02:33.3]} 14. Na4
{[%clk 0:02:23.1]} 14... Qc6 {[%clk 0:02:30]} 15. c3 {[%clk 0:02:21.6]} 15... b5
{[%clk 0:02:28.5]} 16. Bd3 {[%clk 0:01:56.8]} 16... bxa4 {[%clk 0:02:25.7]} 17.
f4 {[%clk 0:01:57.1]} 17... Nc5 {[%clk 0:02:22.4]} 18. Bc2 {[%clk 0:01:55.9]}
18... Rb8 {[%clk 0:02:18.6]} 19. Rb1 {[%clk 0:01:55.7]} 19... Ne4 {[%clk
0:02:12.8]} 20. Bh2 {[%clk 0:01:50.5]} 20... Bd7 {[%clk 0:02:03.7]} 21. f5
{[%clk 0:01:41.8]} 21... e5 {[%clk 0:02:03.7]} 22. g4 {[%clk 0:01:40.7]} 22...
Rb7 {[%clk 0:01:56.9]} 23. Qe2 {[%clk 0:01:22.3]} 23... Rfb8 {[%clk 0:01:54.9]}
24. Qg2 {[%clk 0:01:21.9]} 24... Rxb2 {[%clk 0:01:50.8]} 25. Bxe4 {[%clk
0:01:19.6]} 25... Rxg2+ {[%clk 0:01:47.4]} 0-1

[Event "Late-Titled-Tuesday-Blitz-May-07-2024"]
[Site "Chess.com"]
[Date "2024.05.07"]
[Round "6"]
[White "Giantgoogachess"]
[Black "merinasian"]
[Result "0-1"]
[WhiteElo "2269"]
[BlackElo "2474"]
[TimeControl "180+1"]
[EndTime "15:03:17 PDT"]
[Termination "merinasian won by resignation"]

1. Nf3 {[%clk 0:03:00.9]} 1... g6 {[%clk 0:02:54.7]} 2. d4 {[%clk 0:02:58.4]}
2... Bg7 {[%clk 0:02:55.6]} 3. b3 {[%clk 0:02:59.1]} 3... d6 {[%clk 0:02:54]} 4.
Bb2 {[%clk 0:02:59.6]} 4... Nd7 {[%clk 0:02:54.3]} 5. g3 {[%clk 0:02:59]} 5...
e5 {[%clk 0:02:53.7]} 6. Bg2 {[%clk 0:02:59.9]} 6... e4 {[%clk 0:02:53.1]} 7.
Nfd2 {[%clk 0:02:58.5]} 7... f5 {[%clk 0:02:51.5]} 8. O-O {[%clk 0:02:58.8]}
8... Ngf6 {[%clk 0:02:51.7]} 9. e3 {[%clk 0:02:55.9]} 9... O-O {[%clk
0:02:51.6]} 10. c4 {[%clk 0:02:56.8]} 10... c6 {[%clk 0:02:48.2]} 11. Nc3 {[%clk
0:02:56.5]} 11... d5 {[%clk 0:02:48.2]} 12. Ba3 {[%clk 0:02:57.4]} 12... Re8
{[%clk 0:02:47.5]} 13. cxd5 {[%clk 0:02:57.2]} 13... Nxd5 {[%clk 0:02:47.5]} 14.
Nxd5 {[%clk 0:02:56.1]} 14... cxd5 {[%clk 0:02:47.5]} 15. Nb1 {[%clk 0:02:54.1]}
15... Nf6 {[%clk 0:02:45.4]} 16. Nc3 {[%clk 0:02:54.2]} 16... Qa5 {[%clk
0:02:45.3]} 17. Qc1 {[%clk 0:02:52.4]} 17... Be6 {[%clk 0:02:44]} 18. b4 {[%clk
0:02:41.6]} 18... Qd8 {[%clk 0:02:41.7]} 19. Qb2 {[%clk 0:02:39.5]} 19... Nd7
{[%clk 0:02:40.2]} 20. Na4 {[%clk 0:02:38.6]} 20... b5 {[%clk 0:02:37.7]} 21.
Nc5 {[%clk 0:02:37.6]} 21... Nb6 {[%clk 0:02:38.3]} 22. Qb3 {[%clk 0:02:27.8]}
22... Nc4 {[%clk 0:02:38.2]} 23. Bb2 {[%clk 0:02:28.5]} 23... g5 {[%clk
0:02:36.7]} 24. a4 {[%clk 0:02:28.3]} 24... bxa4 {[%clk 0:02:34]} 25. Rxa4
{[%clk 0:02:21.2]} 25... f4 {[%clk 0:02:31.5]} 26. Nxe6 {[%clk 0:02:15.5]} 26...
Rxe6 {[%clk 0:02:30.9]} 27. Bh3 {[%clk 0:02:15.4]} 27... Rh6 {[%clk 0:02:29.4]}
28. Bg4 {[%clk 0:02:12.9]} 28... Nd2 {[%clk 0:02:25.9]} 29. Qd1 {[%clk 0:02:12]}
29... Nxf1 {[%clk 0:02:25.9]} 30. Qxf1 {[%clk 0:02:12.7]} 30... fxe3 {[%clk
0:02:21.1]} 31. fxe3 {[%clk 0:02:13.6]} 31... Rf6 {[%clk 0:02:20.9]} 32. Qb5
{[%clk 0:02:08.3]} 32... Kh8 {[%clk 0:02:11.9]} 33. Ra6 {[%clk 0:02:07.3]} 33...
Rb8 {[%clk 0:02:00.8]} 34. Qa4 {[%clk 0:02:06.2]} 34... Rxa6 {[%clk 0:01:57.9]}
35. Qxa6 {[%clk 0:02:07.1]} 35... Rxb4 {[%clk 0:01:57.9]} 36. Ba3 {[%clk
0:02:07.1]} 36... Rb1+ {[%clk 0:01:50.8]} 37. Kg2 {[%clk 0:02:06.4]} 37... Ra1
{[%clk 0:01:38.2]} 0-1

[Event "Late-Titled-Tuesday-Blitz-May-07-2024"]
[Site "Chess.com"]
[Date "2024.05.07"]
[Round "6"]
[White "nitpicker"]
[Black "Magicmaster17"]
[Result "0-1"]
[WhiteElo "2286"]
[BlackElo "2882"]
[TimeControl "180+1"]
[EndTime "15:03:26 PDT"]
[Termination "Magicmaster17 won by resignation"]

1. d4 {[%clk 0:03:00.9]} 1... Nf6 {[%clk 0:02:59.4]} 2. c4 {[%clk 0:03:00.8]}
2... c5 {[%clk 0:02:59.6]} 3. d5 {[%clk 0:03:00.6]} 3... g6 {[%clk 0:03:00.3]}
4. Nc3 {[%clk 0:03:00.1]} 4... Bg7 {[%clk 0:03:00.8]} 5. e4 {[%clk 0:03:00]}
5... O-O {[%clk 0:03:01.5]} 6. Nf3 {[%clk 0:02:54]} 6... e6 {[%clk 0:02:59.8]}
7. Bd3 {[%clk 0:02:43.8]} 7... exd5 {[%clk 0:02:59]} 8. exd5 {[%clk 0:02:30.6]}
8... Re8+ {[%clk 0:02:58.7]} 9. Be2 {[%clk 0:02:30.6]} 9... d6 {[%clk
0:02:58.4]} 10. O-O {[%clk 0:02:30]} 10... Bf5 {[%clk 0:02:57.8]} 11. h3 {[%clk
0:02:24.6]} 11... Na6 {[%clk 0:02:54.1]} 12. a3 {[%clk 0:02:20.1]} 12... Qd7
{[%clk 0:02:37.5]} 13. Bf4 {[%clk 0:02:12]} 13... Ne4 {[%clk 0:02:32.4]} 14.
Nxe4 {[%clk 0:02:02.1]} 14... Rxe4 {[%clk 0:02:31.5]} 15. Bc1 {[%clk 0:01:42.5]}
15... Nc7 {[%clk 0:02:24.5]} 16. Nd2 {[%clk 0:01:27]} 16... Re7 {[%clk
0:02:22.5]} 17. g4 {[%clk 0:01:25.1]} 17... Rae8 {[%clk 0:02:21.8]} 18. Re1
{[%clk 0:01:20.1]} 18... Bd3 {[%clk 0:02:21.5]} 0-1

[Event "Late-Titled-Tuesday-Blitz-May-07-2024"]
[Site "Chess.com"]
[Date "2024.05.07"]
[Round "6"]
[White "XDPS"]
[Black "ahkashefi2800"]
[Result "1-0"]
[WhiteElo "2829"]
[BlackElo "2586"]
[TimeControl "180+1"]
[EndTime "15:03:40 PDT"]
[Termination "XDPS won by resignation"]

1. d4 {[%clk 0:03:00.9]} 1... d5 {[%clk 0:02:59.9]} 2. c4 {[%clk 0:03:01.3]}
2... c6 {[%clk 0:02:59.9]} 3. Nf3 {[%clk 0:03:00.6]} 3... Nf6 {[%clk 0:03:00.4]}
4. Nbd2 {[%clk 0:03:01.3]} 4... e6 {[%clk 0:02:59.4]} 5. Qc2 {[%clk 0:03:00.8]}
5... Be7 {[%clk 0:02:59.4]} 6. e4 {[%clk 0:03:00.4]} 6... dxe4 {[%clk
0:02:59.2]} 7. Nxe4 {[%clk 0:03:01.3]} 7... Nxe4 {[%clk 0:03:00.1]} 8. Qxe4
{[%clk 0:03:01.2]} 8... Nd7 {[%clk 0:03:01]} 9. Bd3 {[%clk 0:03:01.4]} 9... Nf6
{[%clk 0:03:01.9]} 10. Qe2 {[%clk 0:03:01.6]} 10... Bb4+ {[%clk 0:03:01.9]} 11.
Kf1 {[%clk 0:03:01.2]} 11... O-O {[%clk 0:03:00.9]} 12. Bg5 {[%clk 0:03:00.9]}
12... Be7 {[%clk 0:03:01.4]} 13. Rd1 {[%clk 0:03:00.5]} 13... b6 {[%clk
0:03:00.2]} 14. Ne5 {[%clk 0:02:59.3]} 14... Bb7 {[%clk 0:03:00.8]} 15. h4
{[%clk 0:02:59.8]} 15... Rc8 {[%clk 0:02:55.2]} 16. Rh3 {[%clk 0:02:59.4]} 16...
Kh8 {[%clk 0:02:46.4]} 17. Bc2 {[%clk 0:02:18.5]} 17... h6 {[%clk 0:02:31.9]}
18. Rg3 {[%clk 0:02:00.8]} 18... Ng8 {[%clk 0:02:28.6]} 19. Qd3 {[%clk
0:01:52.3]} 19... g6 {[%clk 0:01:57.3]} 20. Nxg6+ {[%clk 0:01:47.2]} 20... fxg6
{[%clk 0:01:55.2]} 21. Qxg6 {[%clk 0:01:48.1]} 21... Rf5 {[%clk 0:01:52]} 22.
Bxh6 {[%clk 0:01:18.8]} 1-0

[Event "Late-Titled-Tuesday-Blitz-May-07-2024"]
[Site "Chess.com"]
[Date "2024.05.07"]
[Round "6"]
[White "mishanick"]
[Black "AlexeiShirov"]
[Result "1-0"]
[WhiteElo "3062"]
[BlackElo "2889"]
[TimeControl "180+1"]
[EndTime "15:03:50 PDT"]
[Termination "mishanick won by resignation"]

1. d4 {[%clk 0:03:00.9]} 1... d5 {[%clk 0:02:57.7]} 2. c4 {[%clk 0:03:01.2]}
2... c6 {[%clk 0:02:57.9]} 3. Nf3 {[%clk 0:03:01.9]} 3... Nf6 {[%clk 0:02:58.1]}
4. Nc3 {[%clk 0:03:02.6]} 4... e6 {[%clk 0:02:58.2]} 5. e3 {[%clk 0:03:03.2]}
5... Nbd7 {[%clk 0:02:57.6]} 6. Qc2 {[%clk 0:03:03.8]} 6... Bd6 {[%clk
0:02:57.4]} 7. Be2 {[%clk 0:03:04.1]} 7... O-O {[%clk 0:02:56.6]} 8. O-O {[%clk
0:03:04.3]} 8... dxc4 {[%clk 0:02:56.3]} 9. Bxc4 {[%clk 0:03:05.2]} 9... b5
{[%clk 0:02:56.6]} 10. Bd3 {[%clk 0:03:05.8]} 10... Bb7 {[%clk 0:02:55.6]} 11.
e4 {[%clk 0:03:06.2]} 11... e5 {[%clk 0:02:54.9]} 12. Bg5 {[%clk 0:03:06.6]}
12... h6 {[%clk 0:02:43.4]} 13. Bh4 {[%clk 0:03:04.5]} 13... exd4 {[%clk
0:02:29.5]} 14. Nxd4 {[%clk 0:03:01.9]} 14... Nc5 {[%clk 0:02:29.2]} 15. Rad1
{[%clk 0:02:36.8]} 15... Bxh2+ {[%clk 0:02:15.9]} 16. Kxh2 {[%clk 0:02:37.7]}
16... Ng4+ {[%clk 0:02:05.6]} 17. Kh3 {[%clk 0:01:55.5]} 17... Qxd4 {[%clk
0:01:54.3]} 18. Be2 {[%clk 0:01:48.7]} 18... Qe5 {[%clk 0:01:53.5]} 19. Bxg4
{[%clk 0:01:45.3]} 19... Bc8 {[%clk 0:01:54]} 20. Bxc8 {[%clk 0:01:38.9]} 20...
Raxc8 {[%clk 0:01:53.4]} 21. f4 {[%clk 0:01:39.1]} 21... Qe8 {[%clk 0:01:46.1]}
22. e5 {[%clk 0:01:37.1]} 22... f5 {[%clk 0:01:45.9]} 23. exf6 {[%clk
0:01:13.2]} 23... b4 {[%clk 0:01:45.4]} 24. Rfe1 {[%clk 0:01:09.8]} 1-0

[Event "Late-Titled-Tuesday-Blitz-May-07-2024"]
[Site "Chess.com"]
[Date "2024.05.07"]
[Round "6"]
[White "NovakRatko"]
[Black "Navyblue1"]
[Result "1-0"]
[WhiteElo "2410"]
[BlackElo "2231"]
[TimeControl "180+1"]
[EndTime "15:03:57 PDT"]
[Termination "NovakRatko won by resignation"]

1. d4 {[%clk 0:02:59.3]} 1... Nf6 {[%clk 0:02:50.5]} 2. c4 {[%clk 0:02:59.4]}
2... g6 {[%clk 0:02:49]} 3. Nc3 {[%clk 0:02:59.2]} 3... Bg7 {[%clk 0:02:48.8]}
4. e4 {[%clk 0:02:59]} 4... d6 {[%clk 0:02:45.8]} 5. f3 {[%clk 0:02:58.5]} 5...
O-O {[%clk 0:02:45.3]} 6. Be3 {[%clk 0:02:58.8]} 6... c5 {[%clk 0:02:35.6]} 7.
dxc5 {[%clk 0:02:58]} 7... dxc5 {[%clk 0:02:35]} 8. Qxd8 {[%clk 0:02:58.9]} 8...
Rxd8 {[%clk 0:02:34.6]} 9. Bxc5 {[%clk 0:02:59.6]} 9... Nc6 {[%clk 0:02:33.3]}
10. Nd5 {[%clk 0:03:00]} 10... e6 {[%clk 0:02:29]} 11. Ne7+ {[%clk 0:02:58]}
11... Nxe7 {[%clk 0:02:28.4]} 12. Bxe7 {[%clk 0:02:58.9]} 12... Re8 {[%clk
0:02:27.4]} 13. Ba3 {[%clk 0:02:58.8]} 13... Bd7 {[%clk 0:02:22.1]} 14. O-O-O
{[%clk 0:02:56.3]} 14... Bc6 {[%clk 0:02:18.9]} 15. Ne2 {[%clk 0:02:52.9]} 15...
Rac8 {[%clk 0:02:18.4]} 16. Nc3 {[%clk 0:02:49.8]} 16... Nd7 {[%clk 0:02:12.3]}
17. Kc2 {[%clk 0:02:42.7]} 17... Nb6 {[%clk 0:02:00.4]} 18. b3 {[%clk
0:02:41.9]} 18... Nd7 {[%clk 0:01:49.9]} 19. Be2 {[%clk 0:02:39.8]} 19... Bxc3
{[%clk 0:01:20.8]} 20. Kxc3 {[%clk 0:02:38.8]} 20... b5 {[%clk 0:01:21.2]} 21.
Kb2 {[%clk 0:02:35.9]} 21... bxc4 {[%clk 0:01:20.8]} 22. Bxc4 {[%clk 0:02:34.7]}
22... Nb6 {[%clk 0:01:20.5]} 23. Ba6 {[%clk 0:02:33.3]} 23... Rb8 {[%clk
0:01:19.4]} 24. Ka1 {[%clk 0:02:30.8]} 24... Rbd8 {[%clk 0:01:07.2]} 25. Bc5
{[%clk 0:02:25.9]} 25... f5 {[%clk 0:00:53.6]} 26. exf5 {[%clk 0:02:16.4]} 26...
exf5 {[%clk 0:00:51.7]} 27. a4 {[%clk 0:02:13]} 27... Bd5 {[%clk 0:00:45.1]} 28.
Bxb6 {[%clk 0:02:09.5]} 28... axb6 {[%clk 0:00:43.8]} 29. Rxd5 {[%clk
0:02:09.8]} 29... Rxd5 {[%clk 0:00:40.2]} 30. Bc4 {[%clk 0:02:10]} 30... Rd8
{[%clk 0:00:37.2]} 31. Rd1 {[%clk 0:02:09.4]} 31... Kf8 {[%clk 0:00:36.2]} 32.
Rxd5 {[%clk 0:02:09.1]} 32... Ke7 {[%clk 0:00:36.8]} 33. Rxd8 {[%clk 0:02:08.8]}
1-0

[Event "Late-Titled-Tuesday-Blitz-May-07-2024"]
[Site "Chess.com"]
[Date "2024.05.07"]
[Round "6"]
[White "Mikhal867"]
[Black "hsd2016"]
[Result "1-0"]
[WhiteElo "2524"]
[BlackElo "2354"]
[TimeControl "180+1"]
[EndTime "15:04:02 PDT"]
[Termination "Mikhal867 won by resignation"]

1. d4 {[%clk 0:02:55.7]} 1... d5 {[%clk 0:02:59.6]} 2. c4 {[%clk 0:02:55]} 2...
c6 {[%clk 0:02:58.8]} 3. Nf3 {[%clk 0:02:54.2]} 3... Nf6 {[%clk 0:02:59]} 4. g3
{[%clk 0:02:53.9]} 4... Bg4 {[%clk 0:02:56.3]} 5. Bg2 {[%clk 0:02:53.3]} 5... e6
{[%clk 0:02:56.2]} 6. O-O {[%clk 0:02:52.8]} 6... Nbd7 {[%clk 0:02:56.5]} 7. Nc3
{[%clk 0:02:52.1]} 7... Bd6 {[%clk 0:02:56.4]} 8. Qb3 {[%clk 0:02:46]} 8... Qc8
{[%clk 0:02:50]} 9. Re1 {[%clk 0:02:39.4]} 9... O-O {[%clk 0:02:49.4]} 10. e4
{[%clk 0:02:38.7]} 10... dxe4 {[%clk 0:02:49.9]} 11. Nxe4 {[%clk 0:02:38.6]}
11... Nxe4 {[%clk 0:02:50.8]} 12. Rxe4 {[%clk 0:02:38.5]} 12... Nf6 {[%clk
0:02:51.7]} 13. Re1 {[%clk 0:02:35.8]} 13... Qc7 {[%clk 0:02:50.4]} 14. Ne5
{[%clk 0:02:34.9]} 14... Bxe5 {[%clk 0:02:49.4]} 15. Rxe5 {[%clk 0:02:20.1]}
15... Nd7 {[%clk 0:02:43.6]} 16. Re1 {[%clk 0:02:07]} 16... Rfe8 {[%clk
0:02:41.1]} 17. Bf4 {[%clk 0:01:57.7]} 17... e5 {[%clk 0:02:38.8]} 18. dxe5
{[%clk 0:01:52.6]} 18... Nxe5 {[%clk 0:02:39.7]} 19. Bxe5 {[%clk 0:01:51.6]}
19... Rxe5 {[%clk 0:02:39.7]} 20. Rxe5 {[%clk 0:01:51.6]} 20... Qxe5 {[%clk
0:02:40.6]} 21. Qxb7 {[%clk 0:01:49.1]} 21... Rd8 {[%clk 0:02:40.4]} 22. h3
{[%clk 0:01:34.8]} 22... Be6 {[%clk 0:02:37.8]} 23. Rc1 {[%clk 0:01:18.8]} 23...
h6 {[%clk 0:02:32.2]} 24. b3 {[%clk 0:01:12.2]} 24... Rd2 {[%clk 0:02:29.5]} 25.
Qxa7 {[%clk 0:01:09.4]} 25... c5 {[%clk 0:02:17.9]} 26. Qa8+ {[%clk 0:01:06.5]}
26... Kh7 {[%clk 0:02:15.6]} 27. Qe4+ {[%clk 0:01:06.3]} 27... Qxe4 {[%clk
0:02:15.5]} 28. Bxe4+ {[%clk 0:01:06.1]} 28... f5 {[%clk 0:02:16.4]} 29. Bb1
{[%clk 0:01:04.5]} 29... Rb2 {[%clk 0:02:14.3]} 30. Re1 {[%clk 0:01:01.2]} 30...
Bd7 {[%clk 0:02:11.4]} 31. g4 {[%clk 0:00:56.7]} 31... Kg6 {[%clk 0:02:10.8]}
32. Kg2 {[%clk 0:00:50.6]} 32... Kf6 {[%clk 0:02:11.7]} 33. Kg3 {[%clk
0:00:48.9]} 33... g5 {[%clk 0:02:09.5]} 34. Bxf5 {[%clk 0:00:44.4]} 34... Bxf5
{[%clk 0:02:08.4]} 35. gxf5 {[%clk 0:00:44.7]} 35... Rxa2 {[%clk 0:02:09]} 36.
Re6+ {[%clk 0:00:44.2]} 36... Kxf5 {[%clk 0:02:08.8]} 37. Rc6 {[%clk 0:00:42.5]}
37... Rb2 {[%clk 0:02:07.9]} 38. Rxc5+ {[%clk 0:00:42.5]} 38... Kg6 {[%clk
0:02:08.7]} 39. Rb5 {[%clk 0:00:41.6]} 1-0

[Event "Late-Titled-Tuesday-Blitz-May-07-2024"]
[Site "Chess.com"]
[Date "2024.05.07"]
[Round "6"]
[White "hikaruchija"]
[Black "rionelG"]
[Result "1-0"]
[WhiteElo "2509"]
[BlackElo "2285"]
[TimeControl "180+1"]
[EndTime "15:04:19 PDT"]
[Termination "hikaruchija won by checkmate"]

1. e4 {[%clk 0:03:00.9]} 1... c5 {[%clk 0:02:54.3]} 2. Nc3 {[%clk 0:03:00.3]}
2... a6 {[%clk 0:02:52.8]} 3. g3 {[%clk 0:03:00.9]} 3... Nc6 {[%clk 0:02:52.6]}
4. Bg2 {[%clk 0:03:01.6]} 4... g6 {[%clk 0:02:53]} 5. d3 {[%clk 0:03:01.9]} 5...
Bg7 {[%clk 0:02:53.5]} 6. Be3 {[%clk 0:03:01.3]} 6... Nd4 {[%clk 0:02:53.4]} 7.
Qd2 {[%clk 0:03:01.1]} 7... e6 {[%clk 0:02:51.4]} 8. Nd1 {[%clk 0:02:58.8]} 8...
d6 {[%clk 0:02:49.4]} 9. c3 {[%clk 0:02:58.8]} 9... Nc6 {[%clk 0:02:49.5]} 10.
Ne2 {[%clk 0:02:56.5]} 10... Nge7 {[%clk 0:02:48.2]} 11. Bh6 {[%clk 0:02:54.8]}
11... O-O {[%clk 0:02:45.6]} 12. h4 {[%clk 0:02:54.2]} 12... Bxh6 {[%clk
0:02:23.3]} 13. Qxh6 {[%clk 0:02:51.5]} 13... Ne5 {[%clk 0:01:40.5]} 14. h5
{[%clk 0:02:34]} 14... Ng4 {[%clk 0:01:29.7]} 15. Qd2 {[%clk 0:02:20.5]} 15...
d5 {[%clk 0:01:08.5]} 16. f3 {[%clk 0:02:12.6]} 16... Ne5 {[%clk 0:01:07.1]} 17.
d4 {[%clk 0:02:10.2]} 17... cxd4 {[%clk 0:01:05.2]} 18. cxd4 {[%clk 0:02:11.1]}
18... Nc4 {[%clk 0:00:49.9]} 19. Qh6 {[%clk 0:02:09.5]} 19... Re8 {[%clk
0:00:31.9]} 20. hxg6 {[%clk 0:02:07.9]} 20... fxg6 {[%clk 0:00:30]} 21. Qxh7+
{[%clk 0:02:07.7]} 21... Kf8 {[%clk 0:00:30.6]} 22. Rh6 {[%clk 0:01:42.1]} 22...
Ng8 {[%clk 0:00:26.6]} 23. Rxg6 {[%clk 0:01:39.2]} 23... Nf6 {[%clk 0:00:21.9]}
24. Qg7# {[%clk 0:01:37.2]} 1-0

[Event "Late-Titled-Tuesday-Blitz-May-07-2024"]
[Site "Chess.com"]
[Date "2024.05.07"]
[Round "6"]
[White "pouya21"]
[Black "ChristopherYoo"]
[Result "1-0"]
[WhiteElo "2858"]
[BlackElo "2987"]
[TimeControl "180+1"]
[EndTime "15:04:38 PDT"]
[Termination "pouya21 won by resignation"]

1. e4 {[%clk 0:03:00.9]} 1... e5 {[%clk 0:02:59.6]} 2. Nf3 {[%clk 0:03:00.7]}
2... Nc6 {[%clk 0:03:00.3]} 3. Bb5 {[%clk 0:03:01]} 3... a6 {[%clk 0:03:00.2]}
4. Bxc6 {[%clk 0:02:58.9]} 4... dxc6 {[%clk 0:02:59.7]} 5. O-O {[%clk
0:02:59.6]} 5... f6 {[%clk 0:02:59.7]} 6. d4 {[%clk 0:02:59.5]} 6... exd4 {[%clk
0:03:00]} 7. Nxd4 {[%clk 0:02:59.7]} 7... c5 {[%clk 0:03:00]} 8. Ne2 {[%clk
0:03:00.4]} 8... Bd6 {[%clk 0:02:54.3]} 9. Bf4 {[%clk 0:02:58.8]} 9... Bxf4
{[%clk 0:02:34.8]} 10. Qxd8+ {[%clk 0:02:58]} 10... Kxd8 {[%clk 0:02:35.7]} 11.
Nxf4 {[%clk 0:02:58.2]} 11... Ne7 {[%clk 0:02:23.9]} 12. Rd1+ {[%clk 0:02:57]}
12... Ke8 {[%clk 0:02:24.1]} 13. Nc3 {[%clk 0:02:57.5]} 13... Bd7 {[%clk
0:02:17.2]} 14. Ncd5 {[%clk 0:02:52.9]} 14... Nxd5 {[%clk 0:02:08.9]} 15. Nxd5
{[%clk 0:02:53.8]} 15... Rc8 {[%clk 0:02:04.5]} 16. f3 {[%clk 0:02:54.2]} 16...
Bc6 {[%clk 0:02:02]} 17. Ne3 {[%clk 0:02:53.2]} 17... Kf7 {[%clk 0:02:00.7]} 18.
Kf2 {[%clk 0:02:51.9]} 18... b6 {[%clk 0:01:49.8]} 19. Rd2 {[%clk 0:02:51.9]}
19... Rhd8 {[%clk 0:01:46.7]} 20. Rxd8 {[%clk 0:02:49.6]} 20... Rxd8 {[%clk
0:01:46.9]} 21. Rd1 {[%clk 0:02:50.5]} 21... Rxd1 {[%clk 0:01:41.7]} 22. Nxd1
{[%clk 0:02:51.4]} 22... Ke6 {[%clk 0:01:41.3]} 23. Ke3 {[%clk 0:02:51.5]} 23...
f5 {[%clk 0:01:36.6]} 24. exf5+ {[%clk 0:02:40.3]} 24... Kxf5 {[%clk 0:01:36.3]}
25. Nf2 {[%clk 0:02:41.2]} 25... a5 {[%clk 0:01:25.2]} 26. h4 {[%clk 0:02:35.9]}
26... a4 {[%clk 0:01:12.8]} 27. a3 {[%clk 0:02:34]} 27... Ke6 {[%clk 0:01:01.2]}
28. Nd3 {[%clk 0:02:32.5]} 28... Bb5 {[%clk 0:00:55.4]} 29. g4 {[%clk 0:02:28]}
29... Bxd3 {[%clk 0:00:29]} 30. Kxd3 {[%clk 0:02:28]} 30... b5 {[%clk
0:00:26.1]} 31. Ke4 {[%clk 0:02:26.8]} 31... c4 {[%clk 0:00:25.8]} 32. c3 {[%clk
0:02:26.5]} 32... c6 {[%clk 0:00:18.9]} 33. f4 {[%clk 0:02:24.9]} 33... g6
{[%clk 0:00:12]} 34. f5+ {[%clk 0:02:23.5]} 34... gxf5+ {[%clk 0:00:12.1]} 35.
gxf5+ {[%clk 0:02:24.4]} 35... Kd6 {[%clk 0:00:12.6]} 36. Kd4 {[%clk 0:02:20.7]}
36... h6 {[%clk 0:00:06.5]} 37. h5 {[%clk 0:02:20.3]} 37... Ke7 {[%clk
0:00:03.8]} 38. Ke5 {[%clk 0:02:20.7]} 38... c5 {[%clk 0:00:01.9]} 39. f6+
{[%clk 0:02:19.5]} 39... Kf7 {[%clk 0:00:02.5]} 40. Kf5 {[%clk 0:02:18.5]} 40...
b4 {[%clk 0:00:02.1]} 41. Ke5 {[%clk 0:02:18.4]} 41... b3 {[%clk 0:00:01.7]} 42.
Kf5 {[%clk 0:02:18.3]} 42... Kf8 {[%clk 0:00:02.4]} 43. Kg6 {[%clk 0:02:18.5]}
43... Kg8 {[%clk 0:00:03.2]} 44. Kxh6 {[%clk 0:02:19]} 44... Kf7 {[%clk
0:00:04]} 45. Kg5 {[%clk 0:02:19.6]} 1-0

[Event "Late-Titled-Tuesday-Blitz-May-07-2024"]
[Site "Chess.com"]
[Date "2024.05.07"]
[Round "6"]
[White "Dr_troll"]
[Black "oskariot"]
[Result "0-1"]
[WhiteElo "2549"]
[BlackElo "2760"]
[TimeControl "180+1"]
[EndTime "15:04:43 PDT"]
[Termination "oskariot won by resignation"]

1. Nf3 {[%clk 0:02:52.6]} 1... c5 {[%clk 0:02:59.7]} 2. g3 {[%clk 0:02:52.6]}
2... g6 {[%clk 0:02:59.4]} 3. Bg2 {[%clk 0:02:53.3]} 3... Bg7 {[%clk 0:03:00]}
4. O-O {[%clk 0:02:53.9]} 4... Nc6 {[%clk 0:03:00.9]} 5. c4 {[%clk 0:02:54]}
5... d6 {[%clk 0:03:01]} 6. Nc3 {[%clk 0:02:53]} 6... e5 {[%clk 0:03:01.1]} 7.
Rb1 {[%clk 0:02:52.7]} 7... Nge7 {[%clk 0:03:00.6]} 8. a3 {[%clk 0:02:53.3]}
8... a5 {[%clk 0:03:00.5]} 9. e3 {[%clk 0:02:52.5]} 9... O-O {[%clk 0:02:50.6]}
10. Nd5 {[%clk 0:02:39]} 10... Nxd5 {[%clk 0:02:48.9]} 11. cxd5 {[%clk
0:02:39.1]} 11... Ne7 {[%clk 0:02:49.3]} 12. e4 {[%clk 0:02:38.2]} 12... f5
{[%clk 0:02:48.3]} 13. d3 {[%clk 0:02:38.7]} 13... f4 {[%clk 0:02:48.5]} 14.
gxf4 {[%clk 0:02:28.1]} 14... exf4 {[%clk 0:02:48.1]} 15. d4 {[%clk 0:02:29]}
15... cxd4 {[%clk 0:02:45.6]} 16. Nxd4 {[%clk 0:02:29.9]} 16... g5 {[%clk
0:02:46.4]} 17. Ne6 {[%clk 0:02:27.3]} 17... Bxe6 {[%clk 0:02:45.9]} 18. dxe6
{[%clk 0:02:28.2]} 18... Ng6 {[%clk 0:02:41.9]} 19. Qd5 {[%clk 0:02:15.8]} 19...
Qe7 {[%clk 0:02:39.2]} 20. Bh3 {[%clk 0:02:09.3]} 20... Ne5 {[%clk 0:02:27.6]}
21. f3 {[%clk 0:02:09]} 21... Rac8 {[%clk 0:02:09.9]} 22. b4 {[%clk 0:02:07.3]}
22... Rc2 {[%clk 0:01:50.8]} 23. b5 {[%clk 0:02:02.1]} 23... Rfc8 {[%clk
0:01:25.3]} 24. a4 {[%clk 0:01:18.2]} 24... R8c3 {[%clk 0:01:10.7]} 25. Bg4
{[%clk 0:01:07.8]} 25... Rd3 {[%clk 0:01:06.9]} 26. Rd1 {[%clk 0:01:01.1]} 26...
Rxd5 {[%clk 0:01:04.8]} 27. exd5 {[%clk 0:01:01]} 27... Qc7 {[%clk 0:00:59]} 28.
Ba3 {[%clk 0:00:53.5]} 28... Qb6+ {[%clk 0:00:55.7]} 0-1